fUST/lending_fUST_20260119
["ID","MTS","AMOUNT","RATE_DAILY","PERIOD"]
[402695730,1768805535072,-221.92811709,0.00034176,120]
[402695732,1768805535122,-502.66324065,0.00034176,120]
[402695734,1768805535173,-506.10321503,0.00034176,120]
[402695739,1768805535370,-501.68884732,0.00034176,120]
[402695741,1768805535421,-501.98026344,0.00034176,120]
[402695744,1768805535472,-501.11585129,0.00034176,120]
[402695746,1768805535523,-501.86474012,0.00034176,120]
[402695747,1768805535572,-501.35667407,0.00034176,120]
[402695749,1768805535621,-609.78138322,0.00034176,120]
[402695752,1768805535673,-500.9721406,0.00034176,120]
[402695754,1768805535723,-620.70192468,0.00034176,120]
[402695755,1768805535771,-500.0,0.00034176,120]
[402695758,1768805535819,-294.43067023,0.00034176,120]
[402695760,1768805535868,-503.38250397,0.00034176,120]
[402695762,1768805535920,-500.0,0.00034176,120]
[402695764,1768805535971,-500.0,0.00034176,120]
[402695766,1768805536026,-240.89617716,0.00034176,120]
[402695767,1768805536081,-500.0,0.00034176,120]
[402695769,1768805536134,-360.13993886,0.00034176,120]
[402695771,1768805536186,-500.0,0.00034176,120]
[402695774,1768805536237,-201.8559722,0.00034176,120]
[402695776,1768805536289,-500.0,0.00034176,120]
[402695777,1768805536339,-500.0,0.00034176,120]
[402695780,1768805536388,-183.26447283,0.00034176,120]
[402695781,1768805536439,-445.84974079,0.00034176,120]
[402695783,1768805536489,-500.9222829,0.00034176,120]
[402695786,1768805536539,-65417.87285375,0.00034176,120]
[402695787,1768805536592,-546.96252282,0.00034176,120]
[402695789,1768805536644,-500.0,0.00034176,120]
[402695792,1768805536695,-359.19622555,0.00034176,120]
[402695793,1768805536745,-500.0,0.00034176,120]
[402695795,1768805536794,-500.0,0.00034176,120]
[402695797,1768805536845,-261.48,0.00034176,120]
[402695800,1768805536900,-502.10674706,0.00034176,120]
[402695801,1768805536951,-551.75790337,0.00034176,120]
[402695804,1768805537004,-500.0,0.00034176,120]
[402695805,1768805537056,-500.0,0.00034176,120]
[402695807,1768805537108,-500.0,0.00034176,120]
[402695809,1768805537158,-347.60162364,0.00034176,120]
[402695812,1768805537209,-500.0,0.00034176,120]
[402695813,1768805537260,-500.0,0.00034176,120]
[402695814,1768805537308,-500.0,0.00034176,120]
[402695815,1768805537356,-179.22089087,0.00034176,120]
[402695816,1768805537404,-501.54382053,0.00034176,120]
[402695817,1768805537453,-500.93261545,0.00034176,120]
[402695819,1768805537501,-500.0,0.00034176,120]
[402695821,1768805537550,-522.2495658,0.00034176,120]
[402695822,1768805537600,-500.0,0.00034176,120]
[402695825,1768805537650,-450.88160938,0.00034176,120]
[402695826,1768805537699,-500.0,0.00034176,120]
[402695828,1768805537747,-500.0,0.00034176,120]
[402695831,1768805537795,-258.33964548,0.00034176,120]
[402695832,1768805537843,-371.92465966,0.00034176,120]
[402695834,1768805537895,-200.0,0.00034176,120]
[402695837,1768805537947,-277.90159678,0.00034176,120]
[402695839,1768805537997,-500.0,0.00034176,120]
[402695841,1768805538054,-500.0,0.00034176,120]
[402695843,1768805538098,-500.0,0.00034176,120]
[402695844,1768805538147,-617.28,0.00034176,120]
[402695846,1768805538198,-500.0,0.00034176,120]
[402695849,1768805538250,-500.0,0.00034176,120]
[402695851,1768805538301,-500.0,0.00034176,120]
[402695852,1768805538353,-500.0,0.00034176,120]
[402695855,1768805538406,-257.44666192,0.00034176,120]
[402695856,1768805538456,-501.0923426,0.00034176,120]
[402695859,1768805538508,-545.03235015,0.00034176,120]
[402695861,1768805538557,-500.0,0.00034176,120]
[402695863,1768805538607,-500.0,0.00034176,120]
[402695864,1768805538657,-647.3,0.00034176,120]
[402695866,1768805538709,-500.0,0.00034176,120]
[402695869,1768805538759,-280.26884378,0.00034176,120]
[402695871,1768805538809,-500.0,0.00034176,120]
[402695873,1768805538861,-359.68508164,0.00034176,120]
[402695874,1768805538911,-588.22042013,0.00034176,120]
[402695877,1768805538968,-502.13526585,0.00034176,120]
[402695878,1768805539019,-500.0,0.00034176,120]
[402695881,1768805539080,-500.0,0.00034176,120]
[402695883,1768805539128,-545.89360618,0.00034176,120]
[402695884,1768805539178,-501.23248676,0.00034176,120]
[402695887,1768805539232,-502.23852879,0.00034176,120]
[402695888,1768805539286,-501.17806903,0.00034176,120]
[402695890,1768805539338,-500.50654515,0.00034176,120]
[402695893,1768805539391,-2310.17,0.00034176,120]
[402695895,1768805539444,-2310.17,0.00034176,120]
[402695897,1768805539497,-2310.17,0.00034176,120]
[402695899,1768805539551,-2310.17,0.00034176,120]
[402695900,1768805539603,-2310.17,0.00034176,120]
[402695902,1768805539654,-2310.17,0.00034176,120]
[402695904,1768805539704,-2310.17,0.00034176,120]
[402695907,1768805539757,-2310.17,0.00034176,120]
[402695908,1768805539809,-2310.17,0.00034176,120]
[402695911,1768805539865,-2310.17,0.00034176,120]
[402695913,1768805539918,-2310.17,0.00034176,120]
[402695915,1768805539971,-2310.17,0.00034176,120]
[402695917,1768805540018,-2310.17,0.00034176,120]
[402695919,1768805540069,-2310.17,0.00034176,120]
[402695921,1768805540119,-2310.17,0.00034176,120]
[402695923,1768805540168,-2310.17,0.00034176,120]
[402695928,1768805540402,-2310.17,0.00034176,120]
[402695931,1768805540448,-2310.17,0.00034176,120]
[402695932,1768805540494,-2310.17,0.00034176,120]
[402695935,1768805540542,-2310.17,0.00034176,120]
[402695936,1768805540588,-2310.17,0.00034176,120]
[402695938,1768805540635,-2310.17,0.00034176,120]
[402695940,1768805540681,-2310.17,0.00034176,120]
[402695943,1768805540729,-2310.18,0.00034176,120]
[402695945,1768805540776,-3679.0,0.00034176,120]
[402695947,1768805540824,-538.64573093,0.00034176,120]
[402695949,1768805540873,-500.49096303,0.00034176,120]
[402695951,1768805540922,-549.53370603,0.00034176,120]
[402695952,1768805540974,-502.13493097,0.00034176,120]
[402695955,1768805541022,-501.26408875,0.00034176,120]
[402695956,1768805541071,-501.22275165,0.00034176,120]
[402695958,1768805541121,-500.92205678,0.00034176,120]
[402695961,1768805541170,-502.1257511,0.00034176,120]
[402695962,1768805541218,-562.07146943,0.00034176,120]
[402695965,1768805541267,-590.7736239,0.00034176,120]
[402695966,1768805541318,-502.1355617,0.00034176,120]
[402695969,1768805541366,-500.99860122,0.00034176,120]
[402695971,1768805541415,-500.94398621,0.00034176,120]
[402695973,1768805541463,-500.44333738,0.00034176,120]
[402695975,1768805541511,-500.0,0.00034176,120]
[402695977,1768805541558,-371.25754349,0.00034176,120]
[402695979,1768805541605,-501.34694977,0.00034176,120]
[402695981,1768805541652,-500.544507,0.00034176,120]
[402695983,1768805541697,-501.21134473,0.00034176,120]
[402695985,1768805541743,-501.74790111,0.00034176,120]
[402695987,1768805541789,-501.93378252,0.00034176,120]
[402695988,1768805541837,-501.32503003,0.00034176,120]
[402695991,1768805541884,-500.86528463,0.00034176,120]
[402695993,1768805541933,-500.0,0.00034176,120]
[402695995,1768805541983,-413.74660254,0.00034176,120]
[402695997,1768805542034,-510.76019904,0.00034176,120]
[402695999,1768805542085,-500.0,0.00034176,120]
[402696001,1768805542135,-575.28743128,0.00034176,120]
[402696002,1768805542181,-504.36478124,0.00034176,120]
[402696003,1768805542226,-501.02232988,0.00034176,120]
[402696004,1768805542273,-501.86029599,0.00034176,120]
[402696005,1768805542321,-502.74215918,0.00034176,120]
[402696006,1768805542366,-501.57676828,0.00034176,120]
[402696007,1768805542409,-1072.0,0.00034176,30]
[402696009,1768805542453,-824.73714391,0.00034176,120]
[402696011,1768805542497,-196.48026447,0.00034176,60]
[402696013,1768805542539,-1509.72070432,0.00034176,120]
[402696015,1768805542582,-182.14806014,0.00034176,120]
[402696017,1768805542630,-2200.0089113,0.00034176,120]
[402696019,1768805542679,-500.0,0.00034176,120]
[402696021,1768805542725,-289.64328883,0.00034176,120]
[402696023,1768805542765,-1000.0,0.00034176,120]
[402696025,1768805542805,-1000.0,0.00034176,120]
[402696028,1768805542848,-1000.0,0.00034176,120]
[402696029,1768805542892,-1000.0,0.00034176,120]
[402696032,1768805542940,-1000.0,0.00034176,120]
[402696033,1768805542985,-1000.0,0.00034176,120]
[402696035,1768805543029,-1000.0,0.00034176,120]
[402696037,1768805543073,-1000.0,0.00034176,120]
[402696039,1768805543123,-1000.0,0.00034176,120]
[402696041,1768805543169,-1144.70922753,0.00034176,120]
[402696043,1768805543214,-96539.14418366,0.00034176,30]
[402696045,1768805543258,-301.27762196,0.00034176,120]
[402696047,1768805543303,-573.02022331,0.00034176,120]
[402696049,1768805543351,-2293.71,0.00034176,120]
[402696051,1768805543405,-2293.71,0.00034176,120]
[402696053,1768805543455,-2293.71,0.00034176,120]
[402696055,1768805543504,-2293.71,0.00034176,120]
[402696057,1768805543553,-2293.71,0.00034176,120]
[402696059,1768805543601,-2293.71,0.00034176,120]
[402696061,1768805543648,-2293.71,0.00034176,120]
[402696064,1768805543697,-2293.71,0.00034176,120]
[402696066,1768805543747,-2293.71,0.00034176,120]
[402696068,1768805543795,-2293.71,0.00034176,120]
[402696070,1768805543843,-2293.71,0.00034176,120]
[402696072,1768805543894,-2293.71,0.00034176,120]
[402696073,1768805543946,-2293.71,0.00034176,120]
[402696075,1768805543997,-2293.71,0.00034176,120]
[402696077,1768805544050,-2293.71,0.00034176,120]
[402696079,1768805544102,-2293.71,0.00034176,120]
[402696082,1768805544157,-2293.71,0.00034176,120]
[402696084,1768805544216,-2293.71,0.00034176,120]
[402696085,1768805544268,-2293.71,0.00034176,120]
[402696088,1768805544320,-2293.71,0.00034176,120]
[402696089,1768805544380,-2293.71,0.00034176,120]
[402696091,1768805544432,-2293.71,0.00034176,120]
[402696093,1768805544483,-2293.71,0.00034176,120]
[402696096,1768805544536,-2293.76988785,0.00034176,120]
[402696098,1768805544587,-1289.16512405,0.00034176,120]
[402696099,1768805544637,-15704.42210605,0.00034176,120]
[402696101,1768805544688,-1757.01296441,0.00034176,30]
[402696103,1768805544739,-100000.0,0.00034176,30]
[402696105,1768805544789,-1431.70789589,0.00034176,120]
[402696108,1768805544837,-510.02,0.00034176,120]
[402696110,1768805544888,-213.89006808,0.00034176,120]
[402696114,1768805545065,-184.48934237,0.00034176,120]
[402696116,1768805545140,-184.48934237,0.00034176,120]
[402696118,1768805545188,-213.89006807,0.00034176,120]
[402696120,1768805545242,-184.48934236,0.00034176,120]
[402696123,1768805545294,-201.73045871,0.00034176,120]
[402696125,1768805545345,-152.68470396,0.00034176,120]
[402696126,1768805545396,-209.60179804,0.00034176,120]
[402696128,1768805545444,-206.96086788,0.00034176,120]
[402696131,1768805545494,-278.35538284,0.00034176,120]
[402696133,1768805545544,-201.73045871,0.00034176,120]
[402696134,1768805545594,-152.68470396,0.00034176,120]
[402696136,1768805545642,-278.35538284,0.00034176,120]
[402696139,1768805545689,-201.73045871,0.00034176,120]
[402696140,1768805545735,-278.35538284,0.00034176,120]
[402696143,1768805545786,-152.68470396,0.00034176,120]
[402696144,1768805545835,-278.35538284,0.00034176,120]
[402696147,1768805545885,-152.68470396,0.00034176,120]
[402696149,1768805545938,-278.35538284,0.00034176,120]
[402696150,1768805545991,-152.68470396,0.00034176,120]
[402696153,1768805546042,-201.73045871,0.00034176,120]
[402696155,1768805546093,-278.35538284,0.00034176,120]
[402696156,1768805546146,-152.68470396,0.00034176,120]
[402696159,1768805546198,-201.73045871,0.00034176,120]
[402696161,1768805546249,-152.68470396,0.00034176,120]
[402696163,1768805546301,-278.35538284,0.00034176,120]
[402696165,1768805546351,-201.73045871,0.00034176,120]
[402696167,1768805546401,-278.35538284,0.00034176,120]
[402696169,1768805546451,-201.73045871,0.00034176,120]
[402696171,1768805546501,-278.35538284,0.00034176,120]
[402696172,1768805546548,-201.73045871,0.00034176,120]
[402696175,1768805546609,-278.35538284,0.00034176,120]
[402696177,1768805546659,-278.35538284,0.00034176,120]
[402696178,1768805546712,-201.73045871,0.00034176,120]
[402696180,1768805546765,-201.73045871,0.00034176,120]
[402696183,1768805546815,-201.73045871,0.00034176,120]
[402696185,1768805546869,-278.35538284,0.00034176,120]
[402696186,1768805546918,-201.73045871,0.00034176,120]
[402696188,1768805546971,-278.35538284,0.00034176,120]
[402696190,1768805547021,-201.73045871,0.00034176,120]
[402696193,1768805547074,-278.35538284,0.00034176,120]
[402696194,1768805547122,-201.73045871,0.00034176,120]
[402696195,1768805547169,-201.73045871,0.00034176,120]
[402696196,1768805547217,-209.60179803,0.00034176,120]
[402696197,1768805547266,-152.68470393,0.00034176,120]
[402696198,1768805547312,-278.35538283,0.00034176,120]
[402696199,1768805547357,-601.60268524,0.00034176,120]
[402696201,1768805547403,-172.827673,0.00034176,120]
[402696202,1768805547454,-159.015705,0.00034176,120]
[402696204,1768805547505,-348.93303453,0.00034176,120]
[402696206,1768805547556,-180.07891845,0.00034176,120]
[402696208,1768805547608,-180.07891845,0.00034176,120]
[402696210,1768805547656,-348.93303453,0.00034176,120]
[402696212,1768805547705,-180.07891845,0.00034176,120]
[402696214,1768805547756,-348.93303453,0.00034176,120]
[402696216,1768805547806,-180.07891845,0.00034176,120]
[402696218,1768805547860,-348.93303453,0.00034176,120]
[402696221,1768805547911,-180.07891845,0.00034176,120]
[402696222,1768805547962,-348.93303453,0.00034176,120]
[402696225,1768805548013,-180.07891845,0.00034176,120]
[402696226,1768805548065,-348.93303453,0.00034176,120]
[402696228,1768805548113,-180.07891845,0.00034176,120]
[402696230,1768805548160,-348.93303453,0.00034176,120]
[402696232,1768805548204,-180.07891845,0.00034176,120]
[402696234,1768805548250,-348.93303453,0.00034176,120]
[402696236,1768805548293,-348.93303453,0.00034176,120]
[402696238,1768805548339,-348.93303453,0.00034176,120]
[402696240,1768805548381,-348.93303453,0.00034176,120]
[402696242,1768805548423,-348.93303453,0.00034176,120]
[402696244,1768805548464,-348.93303453,0.00034176,120]
[402696246,1768805548504,-348.93303453,0.00034176,120]
[402696248,1768805548544,-348.93303453,0.00034176,120]
[402696250,1768805548583,-348.93303453,0.00034176,120]
[402696252,1768805548624,-348.93303453,0.00034176,120]
[402696254,1768805548665,-348.93303453,0.00034176,120]
[402696256,1768805548710,-348.93303453,0.00034176,120]
[402696258,1768805548752,-348.93303453,0.00034176,120]
[402696260,1768805548793,-348.93303453,0.00034176,120]
[402696262,1768805548834,-348.93303453,0.00034176,120]
[402696264,1768805548878,-348.93303453,0.00034176,120]
[402696266,1768805548919,-348.93303453,0.00034176,120]
[402696267,1768805548970,-348.93303453,0.00034176,120]
[402696269,1768805549021,-348.93303453,0.00034176,120]
[402696271,1768805549074,-348.93303453,0.00034176,120]
[402696273,1768805549127,-348.93303453,0.00034176,120]
[402696276,1768805549180,-348.93303453,0.00034176,120]
[402696278,1768805549233,-348.93303453,0.00034176,120]
[402696280,1768805549288,-1000.0,0.00034176,120]
[402696282,1768805549341,-1000.0,0.00034176,120]
[402696284,1768805549392,-1000.0,0.00034176,120]
[402696285,1768805549442,-1000.0,0.00034176,120]
[402696287,1768805549489,-434.57202401,0.00034176,120]
[402696289,1768805549535,-151.0,0.00034176,31]
[402696291,1768805549579,-151.0,0.00034176,31]
[402696294,1768805549627,-151.0,0.00034176,31]
[402696295,1768805549677,-151.0,0.00034176,31]
[402696300,1768805549862,-235.000094,0.00034176,31]
[402696302,1768805549918,-523.75559445,0.00034176,120]
[402696304,1768805549967,-282.952735,0.00034176,40]
[402696306,1768805550017,-282.952735,0.00034176,40]
[402696308,1768805550066,-250.0,0.00034176,30]
[402696310,1768805550114,-250.0,0.00034176,30]
[402696312,1768805550159,-250.0,0.00034176,30]
[402696314,1768805550203,-250.0,0.00034176,30]
[402696315,1768805550256,-415.331134,0.00034176,30]
[402696317,1768805550310,-500.0,0.00034176,120]
[402696332,1768805550989,2238.4196255,0.00034176,30]
[402696347,1768805551664,43984.0,0.00034176,30]
[402696349,1768805551714,6738.0,0.00034176,30]
[402696381,1768805553523,-963.72371194,0.00010993,2]
[402696383,1768805553535,-290.89418774,0.00010993,2]
[402696384,1768805553545,-574.0,0.00010993,2]
[402696385,1768805553554,-300.0,0.00012908,2]
[402696386,1768805553564,-160.79,0.00012909,2]
[402696387,1768805553573,-326.31627945,0.00013073,2]
[402696389,1768805553593,-757.61696366,0.00013073,2]
[402696390,1768805553605,-5088.52379001,0.00013073,2]
[402696391,1768805553616,-693.34473706,0.00013073,2]
[402696393,1768805553634,-59879.97231012,0.00013073,2]
[402696395,1768805553681,-6931.52952985,0.00013073,2]
[402696396,1768805553693,-1928.52631954,0.00013073,2]
[402696397,1768805553703,-950.13,0.00013073,2]
[402696927,1768805581312,500.0,0.00027397,120]
[402698547,1768805894502,500.0,0.00027397,120]
[402698548,1768805904850,-4660.84072006,0.00011607,14]
[402698549,1768805905086,-5000.0,0.00011724,14]
[402698550,1768805908518,-300.0,0.00011841,2]
[402698551,1768805908547,-4400.01,0.00011842,14]
[402698552,1768805911673,-5000.0,0.00011723,14]
[402698553,1768805911944,-599.99,0.00011842,14]
[402698554,1768805911976,-277.77846359,0.00012023,2]
[402698555,1768805912012,-300.0,0.00012204,2]
[402698556,1768805912043,-714.01,0.00012329,2]
[402698557,1768805912074,-2677.69422885,0.00012973,2]
[402698558,1768805914719,-861.06461512,0.00012973,2]
[402698559,1768805914751,-1878.75881868,0.00013,2]
[402698560,1768805914782,-200.0,0.00013072,2]
[402698561,1768805914812,-278.16422773,0.00013072,2]
[402698562,1768805914842,-225.623,0.00013072,2]
[402698563,1768805916350,3112.78867694,0.00012843,14]
[402698591,1768806207897,500.0,0.00027397,120]
[402698601,1768806381659,-5000.0,0.00011911,14]
[402698602,1768806384718,-272.22289432,0.00011971,2]
[402698603,1768806384749,-2878.65631954,0.00012031,14]
[402698604,1768806387825,-5000.0,0.00012153,14]
[402698605,1768806390791,-160.791,0.00012811,2]
[402698606,1768806396488,5000.0,0.00012973,2]
[402698611,1768806497885,2500.0,0.00027397,120]
[402698617,1768806513704,2500.0,0.00014,30]
[402698621,1768806519871,500.0,0.00027397,120]
[402698628,1768806545405,57247.92986469,0.00012715,120]
[402698654,1768806632563,-3803.1415143,0.00012462,2]
[402698703,1768806638748,-1072.42239394,0.00012462,2]
[402698704,1768806638809,-124.43609176,0.00012462,2]
[402698705,1768806638819,-5000.0,0.00012588,2]
[402698706,1768806638829,-598.0,0.00012588,2]
[402698707,1768806638838,-106467.15862886,0.00012973,2]
[402699021,1768806645730,-5000.0,0.00012337,2]
[402699022,1768806645741,-2455.01859725,0.00012973,2]
[402699037,1768806832326,500.0,0.00027397,120]
[402699043,1768806848976,-5000.0,0.00012205,2]
[402699044,1768806852135,-249.81,0.00012329,2]
[402699045,1768806852165,-208.17,0.00012329,2]
[402699046,1768806852195,-173.48,0.00012329,2]
[402699047,1768806852224,-867.42,0.00012329,2]
[402699048,1768806852258,-282.70230166,0.00012522,2]
[402699049,1768806852305,-160.791,0.00012713,2]
[402699050,1768806852340,-300.0,0.00012714,2]
[402699051,1768806852373,-300.0,0.00012714,2]
[402699052,1768806855228,-5000.0,0.00012715,2]
[402699053,1768806858252,-3287.94230978,0.000129,2]
[402699054,1768806858283,-249.93674427,0.00012971,2]
[402699055,1768806858314,-396.75207716,0.00012971,2]
[402699056,1768806858347,-500.0,0.00012971,2]
[402699057,1768806858379,-500.0,0.00012971,2]
[402699119,1768806997767,-500.0,0.0003415,120]
[402699121,1768806997813,-500.0,0.0003415,120]
[402699123,1768806997858,-500.0,0.0003415,120]
[402699125,1768806997912,-500.0,0.0003415,120]
[402699126,1768806997966,-500.0,0.0003415,120]
[402699128,1768806998022,-160.0,0.0003415,30]
[402699130,1768806998080,-500.0,0.0003415,120]
[402699132,1768806998135,-500.0,0.0003415,120]
[402699134,1768806998190,-500.0,0.0003415,120]
[402699137,1768806998249,-618.0,0.0003415,120]
[402699139,1768806998306,-618.0,0.0003415,120]
[402699141,1768806998364,-160.0,0.0003415,120]
[402699143,1768806998419,-160.0,0.0003415,120]
[402699144,1768806998474,-500.0,0.0003415,120]
[402699147,1768806998533,-500.0,0.0003415,120]
[402699149,1768806998589,-500.0,0.0003415,120]
[402699151,1768806998648,-500.0,0.0003415,120]
[402699152,1768806998706,-500.0,0.0003415,120]
[402699155,1768806998763,-500.0,0.0003415,120]
[402699156,1768806998819,-500.0,0.0003415,120]
[402699158,1768806998875,-500.0,0.0003415,120]
[402699160,1768806998934,-500.0,0.0003415,120]
[402699162,1768806998992,-500.0,0.0003415,120]
[402699164,1768806999051,-500.0,0.0003415,120]
[402699166,1768806999112,-500.0,0.0003415,120]
[402699169,1768806999175,-500.0,0.0003415,120]
[402699171,1768806999232,-500.0,0.0003415,120]
[402699173,1768806999293,-500.0,0.0003415,120]
[402699178,1768806999509,-500.0,0.0003415,120]
[402699180,1768806999556,-500.0,0.0003415,120]
[402699182,1768806999603,-323.30281168,0.0003415,120]
[402699183,1768806999660,-165.0,0.0003415,120]
[402699185,1768806999719,-151.0,0.0003415,31]
[402699187,1768806999775,-151.0,0.0003415,31]
[402699189,1768806999831,-154.100715,0.0003415,31]
[402699191,1768806999888,-151.0,0.0003415,30]
[402699193,1768806999944,-151.0,0.0003415,30]
[402699196,1768807000002,-151.0,0.0003415,30]
[402699198,1768807000059,-151.0,0.0003415,30]
[402699199,1768807000112,-151.0,0.0003415,30]
[402699201,1768807000169,-151.0,0.0003415,30]
[402699204,1768807000225,-151.0,0.0003415,30]
[402699205,1768807000282,-151.0,0.0003415,30]
[402699208,1768807000337,-151.0,0.0003415,30]
[402699210,1768807000396,-241.626043,0.0003415,30]
[402699212,1768807000451,-229.25784249,0.0003415,120]
[402699213,1768807000506,-158.42205178,0.0003415,120]
[402699215,1768807000562,-167.5379552,0.0003415,120]
[402699217,1768807000618,-158.42205178,0.0003415,120]
[402699219,1768807000674,-158.42205178,0.0003415,120]
[402699222,1768807000731,-3000.0,0.0003415,120]
[402699223,1768807000785,-151.0,0.0003415,31]
[402699225,1768807000839,-156.387264,0.0003415,31]
[402699227,1768807000895,-167.53795519,0.0003415,120]
[402699230,1768807000950,-250.0,0.0003415,30]
[402699231,1768807001006,-151.0,0.0003415,30]
[402699234,1768807001061,-160.0,0.0003415,30]
[402699236,1768807001115,-2000.0,0.0003415,30]
[402699237,1768807001172,-151.0,0.0003415,30]
[402699239,1768807001228,-250.0,0.0003415,30]
[402699241,1768807001284,-151.0,0.0003415,30]
[402699243,1768807001339,-160.0,0.0003415,30]
[402699246,1768807001399,-2000.0,0.0003415,30]
[402699248,1768807001455,-151.0,0.0003415,30]
[402699249,1768807001511,-151.0,0.0003415,30]
[402699252,1768807001567,-5000.0,0.0003415,30]
[402699253,1768807001622,-151.0,0.0003415,30]
[402699255,1768807001679,-151.0,0.0003415,30]
[402699258,1768807001736,-151.0,0.0003415,30]
[402699259,1768807001792,-156.587,0.0003415,30]
[402699261,1768807001848,-414.0,0.0003415,30]
[402699263,1768807001904,-151.0,0.0003415,30]
[402699265,1768807001958,-151.0,0.0003415,30]
[402699267,1768807002015,-151.0,0.0003415,30]
[402699269,1768807002075,-429.318,0.0003415,30]
[402699270,1768807002130,-162.380719,0.0003415,30]
[402699271,1768807002179,-2000.0,0.0003415,30]
[402699272,1768807002228,-151.0,0.0003415,30]
[402699274,1768807002279,-151.0,0.0003415,30]
[402699276,1768807002322,-156.587,0.0003415,30]
[402699277,1768807002377,-168.3888056,0.0003415,30]
[402699280,1768807002430,-2074.0,0.0003415,30]
[402699282,1768807002484,-156.587,0.0003415,30]
[402699284,1768807002539,-151.0,0.0003415,30]
[402699285,1768807002594,-174.61919141,0.0003415,30]
[402699287,1768807002649,-2150.738,0.0003415,30]
[402699290,1768807002704,-2000.0,0.0003415,30]
[402699292,1768807002760,-151.0,0.0003415,30]
[402699293,1768807002816,-445.202766,0.0003415,30]
[402699295,1768807002873,-181.08010149,0.0003415,30]
[402699298,1768807002929,-2230.315306,0.0003415,30]
[402699299,1768807002987,-2000.0,0.0003415,30]
[402699302,1768807003043,-151.0,0.0003415,30]
[402699304,1768807003100,-461.67526834,0.0003415,30]
[402699306,1768807003159,-187.78006525,0.0003415,30]
[402699307,1768807003218,-2312.83697232,0.0003415,30]
[402699309,1768807003277,-2000.0,0.0003415,30]
[402699312,1768807003336,-151.0,0.0003415,30]
[402699313,1768807003398,-478.75725327,0.0003415,30]
[402699315,1768807003456,-194.72792766,0.0003415,30]
[402699317,1768807003513,-2000.0,0.0003415,30]
[402699319,1768807003574,-478.75725327,0.0003415,30]
[402699321,1768807003626,-201.93286099,0.0003415,30]
[402699323,1768807003678,-2000.0,0.0003415,30]
[402699325,1768807003731,-209.40437684,0.0003415,30]
[402699327,1768807003783,-2000.0,0.0003415,30]
[402699329,1768807003838,-217.15233878,0.0003415,30]
[402699332,1768807003891,-2000.0,0.0003415,30]
[402699334,1768807003947,-225.18697532,0.0003415,30]
[402699336,1768807004004,-2000.0,0.0003415,30]
[402699337,1768807004062,-233.51889341,0.0003415,30]
[402699339,1768807004118,-2000.0,0.0003415,30]
[402699341,1768807004174,-151.0,0.0003415,30]
[402699344,1768807004231,-242.15909246,0.0003415,30]
[402699346,1768807004287,-2000.0,0.0003415,30]
[402699347,1768807004343,-151.0,0.0003415,30]
[402699349,1768807004401,-251.11897888,0.0003415,30]
[402699352,1768807004459,-260.4103811,0.0003415,30]
[402699354,1768807004517,-270.0455652,0.0003415,30]
[402699355,1768807004573,-280.03725112,0.0003415,30]
[402699357,1768807004629,-250.0,0.0003415,30]
[402699360,1768807004687,-290.39862941,0.0003415,30]
[402699364,1768807004837,-250.0,0.0003415,30]
[402699366,1768807004909,-290.39862941,0.0003415,30]
[402699367,1768807004968,-151.0,0.0003415,30]
[402699369,1768807005027,-250.0,0.0003415,30]
[402699371,1768807005085,-151.0,0.0003415,30]
[402699373,1768807005143,-250.0,0.0003415,30]
[402699375,1768807005198,-151.0,0.0003415,30]
[402699377,1768807005254,-151.0,0.0003415,30]
[402699380,1768807005318,-151.0,0.0003415,30]
[402699381,1768807005375,-151.0,0.0003415,30]
[402699383,1768807005429,-500.0,0.0003415,30]
[402699385,1768807005482,-151.0,0.0003415,30]